fUST/lending_fUST_20250725
["ID","MTS","AMOUNT","RATE_DAILY","PERIOD"]
[374659707,1753403456425,-1547.17,0.00019063,2]
[374659709,1753403456435,-460.0,0.00019063,2]
[374659711,1753403456444,-460.0,0.00019063,2]
[374659713,1753403456454,-460.0,0.00019063,2]
[374659715,1753403456464,-460.0,0.00019063,2]
[374659718,1753403456480,-460.0,0.00019063,2]
[374659719,1753403456490,-1507.8,0.00019063,2]
[374659721,1753403456499,-473.4517503,0.00019063,2]
[374659723,1753403456509,-1157.67,0.00019063,2]
[374659725,1753403456518,-491.14,0.00019063,2]
[374659728,1753403456528,-481.62,0.00019063,2]
[374659730,1753403456537,-237.99335239,0.00019063,2]
[374659732,1753403456546,-1071.58,0.00019063,2]
[374659734,1753403456555,-877.32,0.00019063,2]
[374659736,1753403456565,-505.47583,0.00019063,2]
[374659737,1753403456574,-572.88,0.00019063,2]
[374659740,1753403456583,-1264.56,0.00019063,2]
[374659742,1753403456593,-460.0,0.00019063,2]
[374659744,1753403456602,-460.0,0.00019063,2]
[374659746,1753403456612,-460.0,0.00019063,2]
[374659748,1753403456622,-460.0,0.00019064,2]
[374659750,1753403456631,-460.0,0.00019064,2]
[374659752,1753403456641,-460.0,0.00019064,2]
[374659754,1753403456650,-610.19,0.00019064,2]
[374659755,1753403456659,-5845.77,0.00019064,2]
[374659758,1753403456670,-2552.59,0.00019064,2]
[374659760,1753403456679,-2511.43,0.00019064,2]
[374659762,1753403456690,-460.0,0.00019064,2]
[374659764,1753403456699,-460.0,0.00019065,2]
[374659766,1753403456708,-460.0,0.00019065,2]
[374659768,1753403456717,-460.0,0.00019065,2]
[374659770,1753403456727,-192.9630094,0.00019065,2]
[374659772,1753403456736,-460.0,0.00019065,2]
[374659774,1753403456746,-460.0,0.00019065,2]
[374659776,1753403456755,-460.0,0.00019065,2]
[374659778,1753403456767,-460.0,0.00019065,2]
[374659780,1753403456776,-597.39,0.00019065,2]
[374659781,1753403456785,-460.0,0.00019065,2]
[374659783,1753403456795,-944.16,0.00019065,2]
[374659785,1753403456804,-460.0,0.00019065,2]
[374659788,1753403456814,-460.0,0.00019065,2]
[374659789,1753403456823,-1040.64,0.00019065,2]
[374659792,1753403456834,-460.0,0.00019065,2]
[374659794,1753403456843,-606.81,0.00019065,2]
[374659796,1753403456854,-863.85,0.00019065,2]
[374659798,1753403456864,-460.0,0.00019065,2]
[374659800,1753403456873,-748.89,0.00019065,2]
[374659802,1753403456884,-460.0,0.00019065,2]
[374659804,1753403456893,-460.0,0.00019065,2]
[374659806,1753403456902,-460.0,0.00019065,2]
[374659808,1753403456911,-460.0,0.00019065,2]
[374659810,1753403456921,-814.22,0.00019065,2]
[374659812,1753403456930,-460.0,0.00019065,2]
[374659814,1753403456940,-460.0,0.00019065,2]
[374659816,1753403456950,-1314.45,0.00019065,2]
[374659818,1753403456959,-1394.83,0.00019065,2]
[374659820,1753403456969,-460.0,0.00019065,2]
[374659822,1753403456979,-460.0,0.00019065,2]
[374659824,1753403456988,-375.11701123,0.00019065,2]
[374659826,1753403456998,-460.0,0.00019065,2]
[374659828,1753403457008,-629.64,0.00019065,2]
[374659830,1753403457017,-1301.85,0.00019065,2]
[374659832,1753403457027,-460.0,0.00019065,2]
[374659834,1753403457036,-460.0,0.00019065,2]
[374659836,1753403457046,-762.27,0.00019065,2]
[374659838,1753403457057,-460.0,0.00019065,2]
[374659840,1753403457067,-460.0,0.00019065,2]
[374659842,1753403457076,-460.0,0.00019065,2]
[374659844,1753403457085,-654.44,0.00019065,2]
[374659846,1753403457095,-460.0,0.00019065,2]
[374659848,1753403457105,-258.98,0.00019065,2]
[374659850,1753403457114,-583.62,0.00019065,2]
[374659852,1753403457124,-611.33,0.00019065,2]
[374659854,1753403457134,-696.94,0.00019065,2]
[374659856,1753403457143,-938.95,0.00019065,2]
[374659858,1753403457153,-460.0,0.00019065,2]
[374659860,1753403457162,-584.1,0.00019065,2]
[374659862,1753403457172,-1418.18,0.00019065,2]
[374659864,1753403457181,-1188.07,0.00019065,2]
[374659866,1753403457191,-531.68,0.00019065,2]
[374659868,1753403457200,-462.94820263,0.00019065,2]
[374659870,1753403457210,-756.86,0.00019065,2]
[374659872,1753403457219,-2548.02,0.00019065,2]
[374659874,1753403457229,-460.0,0.00019065,2]
[374659876,1753403457238,-3609.07108579,0.00019086,2]
[374659879,1753403457249,-252.225551,0.00019089,2]
[374659881,1753403457260,-151.0,0.00019089,2]
[374659883,1753403457273,-185.02,0.00019089,2]
[374659885,1753403457283,-568.95,0.00019089,2]
[374659887,1753403457292,-211.06454854,0.00019089,2]
[374659889,1753403457302,-460.0,0.00019089,2]
[374659891,1753403457312,-460.0,0.00019089,2]
[374659893,1753403457323,-460.0,0.00019089,2]
[374659895,1753403457332,-460.0,0.00019089,2]
[374659897,1753403457341,-460.0,0.00019089,2]
[374659899,1753403457351,-460.0,0.00019089,2]
[374659901,1753403457359,-460.0,0.00019089,2]
[374659903,1753403457369,-460.0,0.00019089,2]
[374659905,1753403457379,-460.0,0.00019089,2]
[374659907,1753403457389,-460.0,0.00019089,2]
[374659909,1753403457399,-460.0,0.00019089,2]
[374659911,1753403457408,-677.81,0.00019089,2]
[374659913,1753403457417,-460.0,0.00019089,2]
[374659915,1753403457427,-460.0,0.00019089,2]
[374659917,1753403457436,-460.0,0.00019089,2]
[374659919,1753403457446,-12624.810388,0.00019091,2]
[374659921,1753403457455,-460.0,0.00019091,2]
[374659923,1753403457464,-174.67482996,0.00019091,2]
[374659925,1753403457473,-460.0,0.00019091,2]
[374659927,1753403457482,-470.68193488,0.00019093,2]
[374659929,1753403457491,-838.89,0.00019093,2]
[374659931,1753403457501,-460.0,0.00019093,2]
[374659933,1753403457514,-460.0,0.00019093,2]
[374659935,1753403457523,-460.0,0.00019093,2]
[374659937,1753403457533,-460.0,0.00019093,2]
[374659939,1753403457542,-460.0,0.00019093,2]
[374659941,1753403457552,-879.6,0.00019093,2]
[374659943,1753403457562,-352.44409855,0.00019093,2]
[374659945,1753403457572,-559.10171578,0.00019093,2]
[374659947,1753403457581,-460.0,0.00019093,2]
[374659949,1753403457591,-460.0,0.00019093,2]
[374659951,1753403457601,-460.0,0.00019093,2]
[374659953,1753403457610,-1019.32,0.00019093,2]
[374659955,1753403457620,-460.0,0.00019093,2]
[374659957,1753403457629,-460.0,0.00019093,2]
[374659959,1753403457639,-460.0,0.00019093,2]
[374659961,1753403457649,-460.0,0.00019093,2]
[374659963,1753403457658,-460.0,0.00019093,2]
[374659965,1753403457667,-286.59412107,0.00019093,2]
[374659967,1753403457677,-460.0,0.00019093,2]
[374659969,1753403457687,-518.36,0.00019093,2]
[374659971,1753403457698,-4836.40217312,0.00019107,2]
[374659973,1753403457708,-1000.0,0.00019121,2]
[374659982,1753403457785,-1000.0,0.00019121,2]
[374659984,1753403457804,-1000.0,0.00019121,2]
[374659987,1753403457815,-1000.0,0.00019121,2]
[374659989,1753403457824,-1000.0,0.00019121,2]
[374659991,1753403457835,-1033.85381126,0.00019121,2]
[374659992,1753403457844,-1000.0,0.00019121,2]
[374659994,1753403457855,-1000.0,0.00019121,2]
[374659996,1753403457864,-1000.0,0.00019121,2]
[374659999,1753403457874,-500.71619421,0.00019121,2]
[374660001,1753403457884,-1000.93391383,0.00019121,2]
[374660003,1753403457894,-500.0,0.00019121,2]
[374660005,1753403457903,-500.0,0.00019121,2]
[374660006,1753403457913,-151.0,0.00019121,2]
[374660008,1753403457922,-151.0,0.00019121,2]
[374660011,1753403457932,-151.0,0.00019121,2]
[374660012,1753403457941,-214.7213231,0.00019154,2]
[374660014,1753403457951,-476.79463412,0.00019154,2]
[374660017,1753403457960,-231.16387093,0.00019154,2]
[374660018,1753403457970,-526.24749348,0.00019154,2]
[374660020,1753403457979,-160.0,0.00019154,2]
[374660022,1753403457988,-160.0,0.0001917,2]
[374660025,1753403457998,-160.0,0.0001917,2]
[374660027,1753403458009,-840.23756827,0.0001917,2]
[374660029,1753403458018,-160.0,0.0001917,2]
[374660031,1753403458028,-215.88777038,0.0001917,2]
[374660033,1753403458038,-195.048699,0.00019178,2]
[374660035,1753403458047,-5000.0,0.00019178,2]
[374660037,1753403458057,-1718.52813186,0.00019205,5]
[374660039,1753403458067,-1168.00721077,0.00019212,2]
[374660041,1753403458077,-345.0,0.00019236,2]
[374660043,1753403458086,-3591.58,0.00019251,2]
[374660045,1753403458096,-460.0,0.00019251,2]
[374660047,1753403458105,-541.22,0.00019251,2]
[374660049,1753403458115,-1056.91,0.00019251,2]
[374660051,1753403458124,-1275.35,0.00019251,2]
[374660053,1753403458135,-3097.91,0.00019251,2]
[374660055,1753403458145,-4502.54,0.00019251,2]
[374660057,1753403458154,-3669.95,0.00019251,2]
[374660059,1753403458164,-460.0,0.00019251,2]
[374660061,1753403458173,-4346.62675395,0.0001926,2]
[374660063,1753403458184,-460.0,0.00019262,2]
[374660065,1753403458193,-515.82,0.00019263,2]
[374660067,1753403458202,-515.82,0.00019263,2]
[374660069,1753403458212,-460.0,0.00019263,2]
[374660071,1753403458222,-460.0,0.00019263,2]
[374660073,1753403458231,-151.0,0.00019263,2]
[374660075,1753403458241,-460.0,0.00019263,2]
[374660077,1753403458251,-460.0,0.00019263,2]
[374660080,1753403458263,-497.93,0.00019263,2]
[374660081,1753403458283,-487.29,0.00019263,2]
[374660083,1753403458303,-460.0,0.00019263,2]
[374660086,1753403458325,-460.0,0.00019263,2]
[374660087,1753403458336,-713.91,0.00019263,2]
[374660089,1753403458347,-1821.3,0.00019263,2]
[374660092,1753403458357,-613.0,0.00019263,2]
[374660094,1753403458366,-669.88,0.00019263,2]
[374660095,1753403458375,-460.0,0.00019263,2]
[374660097,1753403458385,-914.47,0.00019263,2]
[374660099,1753403458394,-781.02,0.00019263,2]
[374660101,1753403458403,-460.0,0.00019263,2]
[374660104,1753403458413,-460.0,0.00019263,2]
[374660106,1753403458423,-460.0,0.00019263,2]
[374660108,1753403458433,-460.0,0.00019263,2]
[374660110,1753403458442,-460.0,0.00019263,2]
[374660112,1753403458452,-460.0,0.00019263,2]
[374660114,1753403458461,-460.0,0.00019263,2]
[374660116,1753403458471,-460.0,0.00019263,2]
[374660118,1753403458480,-721.46,0.00019263,2]
[374660120,1753403458489,-460.0,0.00019263,2]
[374660122,1753403458498,-460.0,0.00019263,2]
[374660124,1753403458511,-505.29,0.00019263,2]
[374660126,1753403458521,-460.0,0.00019263,2]
[374660128,1753403458530,-416.72459286,0.00019263,2]
[374660130,1753403458540,-460.0,0.00019263,2]
[374660132,1753403458549,-1720.45,0.00019263,2]
[374660134,1753403458560,-460.0,0.00019263,2]
[374660136,1753403458570,-667.86,0.00019263,2]
[374660138,1753403458580,-460.0,0.00019263,2]
[374660140,1753403458590,-460.0,0.00019263,2]
[374660142,1753403458599,-460.0,0.00019263,2]
[374660144,1753403458609,-460.0,0.00019263,2]
[374660146,1753403458619,-460.0,0.00019263,2]
[374660148,1753403458628,-462.01415187,0.00019263,2]
[374660150,1753403458639,-460.0,0.00019263,2]
[374660153,1753403458659,-460.0,0.00019263,2]
[374660155,1753403458672,-460.0,0.00019263,2]
[374660157,1753403458683,-815.21,0.00019263,2]
[374660160,1753403458693,-460.0,0.00019263,2]
[374660162,1753403458704,-460.0,0.00019263,2]
[374660164,1753403458714,-460.0,0.00019263,2]
[374660166,1753403458723,-460.0,0.00019263,2]
[374660168,1753403458734,-460.0,0.00019263,2]
[374660170,1753403458744,-460.0,0.00019263,2]
[374660172,1753403458754,-658.4,0.00019263,2]
[374660174,1753403458765,-467.23,0.00019263,2]
[374660176,1753403458775,-460.0,0.00019263,2]
[374660178,1753403458786,-500.0,0.00019263,2]
[374660180,1753403458796,-848.09,0.00019263,2]
[374660183,1753403458805,-3286.2022343,0.00019289,2]
[374660185,1753403458815,-151.0,0.000193,2]
[374660187,1753403458824,-350.0,0.000193,2]
[374660189,1753403458834,-4836.40217312,0.00019314,2]
[374660191,1753403458844,-500.0,0.00019321,2]
[374660193,1753403458853,-522.44810605,0.00019321,2]
[374660195,1753403458863,-1000.0,0.00019321,2]
[374660197,1753403458873,-1000.0,0.00019321,2]
[374660199,1753403458883,-1000.0,0.00019321,2]
[374660201,1753403458892,-1000.0,0.00019321,2]
[374660203,1753403458901,-185.165355,0.00019329,2]
[374660205,1753403458912,-151.0,0.00019329,2]
[374660207,1753403458922,-39781.85551662,0.00019329,2]
[374660209,1753403458931,-460.0,0.0001933,2]
[374660211,1753403458942,-460.0,0.0001933,2]
[374660213,1753403458952,-914.31,0.0001933,2]
[374660215,1753403458962,-460.0,0.0001933,2]
[374660218,1753403458971,-829.03,0.0001933,2]
[374660220,1753403458981,-2681.77,0.0001933,2]
[374660222,1753403458991,-460.0,0.00019332,2]
[374660224,1753403459001,-280.68393489,0.00019332,2]
[374660226,1753403459011,-671.32,0.00019332,2]
[374660228,1753403459022,-460.0,0.00019333,2]
[374660230,1753403459031,-460.0,0.00019333,2]
[374660232,1753403459041,-460.0,0.00019333,2]
[374660244,1753403459149,-8001.42,0.00019333,2]
[374660246,1753403459159,-460.0,0.00019333,2]
[374660248,1753403459169,-3960.81,0.00019333,2]
[374660251,1753403459179,-460.0,0.00019333,2]
[374660253,1753403459188,-833.49,0.00019333,2]
[374660255,1753403459198,-870.13,0.00019333,2]
[374660257,1753403459207,-1140.91,0.00019333,2]
[374660259,1753403459217,-460.0,0.00019333,2]
[374660261,1753403459227,-460.0,0.00019333,2]
[374660263,1753403459241,-3160.07,0.00019333,2]
[374660265,1753403459251,-460.0,0.00019333,2]
[374660267,1753403459262,-3852.66,0.00019333,2]
[374660269,1753403459275,-1023.4,0.00019333,2]
[374660271,1753403459285,-460.0,0.00019333,2]
[374660273,1753403459296,-2667.14,0.00019333,2]
[374660276,1753403459306,-1197.8,0.00019333,2]
[374660278,1753403459316,-920.37,0.00019333,2]
[374660280,1753403459325,-460.0,0.00019334,2]
[374660282,1753403459335,-767.54,0.00019334,2]
[374660284,1753403459344,-460.0,0.00019334,2]
[374660286,1753403459354,-460.0,0.00019334,2]
[374660288,1753403459365,-460.0,0.00019334,2]
[374660290,1753403459374,-701.77,0.00019334,2]
[374660292,1753403459384,-569.95,0.00019334,2]
[374660294,1753403459394,-460.0,0.00019334,2]
[374660296,1753403459404,-460.0,0.00019334,2]
[374660298,1753403459413,-460.0,0.00019334,2]
[374660299,1753403459423,-963.68,0.00019334,2]
[374660300,1753403459432,-614.53,0.00019334,2]
[374660301,1753403459442,-494.73512862,0.00019334,2]
[374660302,1753403459453,-460.0,0.00019334,2]
[374660303,1753403459463,-1011.84,0.00019334,2]
[374660304,1753403459472,-3080.4,0.00019334,2]
[374660305,1753403459483,-1436.23,0.00019334,2]
[374660306,1753403459493,-460.0,0.00019334,2]
[374660307,1753403459502,-460.0,0.00019334,2]
[374660308,1753403459514,-460.0,0.00019334,2]
[374660309,1753403459524,-460.0,0.00019334,2]
[374660310,1753403459534,-724.3,0.00019334,2]
[374660311,1753403459545,-460.0,0.00019334,2]
[374660312,1753403459554,-460.0,0.00019334,2]
[374660313,1753403459564,-460.0,0.00019334,2]
[374660314,1753403459574,-1192.38,0.00019334,2]
[374660315,1753403459583,-573.91,0.00019334,2]
[374660316,1753403459594,-1046.61,0.00019334,2]
[374660317,1753403459604,-393.24104177,0.00019334,2]
[374660318,1753403459614,-460.0,0.00019334,2]
[374660319,1753403459623,-1132.12,0.00019334,2]
[374660320,1753403459633,-460.0,0.00019334,2]
[374660321,1753403459642,-1506.06,0.00019334,2]
[374660322,1753403459652,-460.0,0.00019334,2]
[374660323,1753403459662,-460.0,0.00019334,2]
[374660324,1753403459672,-460.0,0.00019334,2]
[374660325,1753403459682,-460.0,0.00019334,2]
[374660326,1753403459693,-460.0,0.00019334,2]
[374660327,1753403459705,-460.0,0.00019334,2]
[374660328,1753403459715,-460.0,0.00019334,2]
[374660329,1753403459725,-460.0,0.00019334,2]
[374660330,1753403459735,-460.0,0.00019334,2]
[374660331,1753403459745,-345.0,0.00019335,2]
[374660332,1753403459754,-322.05778359,0.00019336,2]
[374660333,1753403459765,-460.0,0.00019337,2]
[374660334,1753403459775,-460.0,0.00019337,2]
[374660335,1753403459784,-460.0,0.00019337,2]
[374660336,1753403459795,-471.32902609,0.00019337,2]
[374660337,1753403459805,-460.0,0.00019337,2]
[374660338,1753403459815,-757.41,0.00019337,2]
[374660339,1753403459826,-460.0,0.00019337,2]
[374660340,1753403459836,-460.0,0.00019337,2]
[374660341,1753403459847,-460.0,0.00019337,2]
[374660342,1753403459857,-460.0,0.00019337,2]
[374660343,1753403459867,-438.49958656,0.00019337,2]
[374660344,1753403459877,-777.25,0.00019337,2]
[374660345,1753403459887,-460.0,0.00019337,2]
[374660346,1753403459897,-1547.17,0.00019337,2]
[374660347,1753403459907,-460.0,0.00019337,2]
[374660348,1753403459918,-480.30986473,0.00019337,2]
[374660349,1753403459928,-217.74351168,0.00019337,2]
[374660350,1753403459938,-460.0,0.00019337,2]
[374660351,1753403459948,-329.80479969,0.00019337,2]
[374660352,1753403459958,-151.0,0.00019337,2]
[374660353,1753403459967,-1507.8,0.00019337,2]
[374660354,1753403459977,-1157.67,0.00019337,2]
[374660355,1753403459987,-491.14,0.00019337,2]
[374660356,1753403459997,-481.62,0.00019337,2]
[374660357,1753403460007,-151.0,0.00019337,2]
[374660358,1753403460018,-151.0,0.00019337,2]
[374660359,1753403460027,-1071.58,0.00019337,2]
[374660360,1753403460038,-877.32,0.00019337,2]
[374660361,1753403460047,-572.88,0.00019337,2]
[374660362,1753403460058,-1264.56,0.00019337,2]
[374660363,1753403460068,-181.65198,0.00019337,2]
[374660364,1753403460078,-181.65198,0.00019337,2]
[374660365,1753403460089,-460.0,0.00019337,2]
[374660366,1753403460099,-460.0,0.00019337,2]
[374660367,1753403460109,-460.0,0.00019337,2]
[374660368,1753403460119,-460.0,0.00019338,2]
[374660369,1753403460130,-460.0,0.00019338,2]
[374660370,1753403460150,-460.0,0.00019338,2]
[374660371,1753403460169,-610.19,0.00019338,2]
[374660372,1753403460179,-5845.77,0.00019338,2]
[374660373,1753403460190,-2552.59,0.00019338,2]
[374660374,1753403460200,-2511.43,0.00019338,2]
[374660375,1753403460211,-460.0,0.00019338,2]
[374660376,1753403460222,-460.0,0.00019339,2]
[374660377,1753403460232,-460.0,0.00019339,2]
[374660378,1753403460242,-460.0,0.00019339,2]
[374660379,1753403460252,-460.0,0.00019339,2]
[374660380,1753403460262,-460.0,0.00019339,2]
[374660381,1753403460277,-460.0,0.00019339,2]
[374660382,1753403460287,-460.0,0.00019339,2]
[374660383,1753403460297,-597.39,0.00019339,2]
[374660384,1753403460308,-460.0,0.00019339,2]
[374660385,1753403460388,-944.16,0.00019339,2]
[374660386,1753403460398,-460.0,0.00019339,2]
[374660387,1753403460408,-460.0,0.00019339,2]
[374660388,1753403460418,-1040.64,0.00019339,2]
[374660389,1753403460428,-422.90541028,0.00019339,2]
[374660390,1753403460437,-606.81,0.00019339,2]
[374660391,1753403460447,-863.85,0.00019339,2]
[374660392,1753403460456,-460.0,0.00019339,2]
[374660393,1753403460467,-748.89,0.00019339,2]
[374660394,1753403460477,-460.0,0.00019339,2]
[374660395,1753403460486,-460.0,0.00019339,2]
[374660396,1753403460496,-460.0,0.00019339,2]
[374660397,1753403460505,-471.90720261,0.00019339,2]
[374660398,1753403460517,-814.22,0.00019339,2]
[374660399,1753403460526,-460.0,0.00019339,2]
[374660400,1753403460536,-460.0,0.00019339,2]
[374660401,1753403460545,-1314.45,0.00019339,2]
[374660402,1753403460555,-1394.83,0.00019339,2]
[374660403,1753403460565,-460.0,0.00019339,2]
[374660404,1753403460574,-460.0,0.00019339,2]
[374660405,1753403460584,-460.0,0.00019339,2]
[374660406,1753403460594,-629.64,0.00019339,2]
[374660407,1753403460614,-1301.85,0.00019339,2]
[374660408,1753403460626,-460.0,0.00019339,2]
[374660409,1753403460637,-762.27,0.00019339,2]
[374660410,1753403460647,-460.0,0.00019339,2]
[374660411,1753403460658,-460.0,0.00019339,2]
[374660412,1753403460668,-654.44,0.00019339,2]
[374660413,1753403460679,-460.0,0.00019339,2]
[374660414,1753403460690,-583.62,0.00019339,2]
[374660415,1753403460700,-611.33,0.00019339,2]
[374660416,1753403460711,-696.94,0.00019339,2]
[374660417,1753403460722,-938.95,0.00019339,2]
[374660418,1753403460733,-460.0,0.00019339,2]
[374660419,1753403460744,-584.1,0.00019339,2]
[374660420,1753403460754,-185.255526,0.00019339,2]
[374660421,1753403460768,-185.255526,0.00019339,2]
[374660422,1753403460779,-1418.18,0.00019339,2]
[374660423,1753403460789,-1188.07,0.00019339,2]
[374660424,1753403460799,-756.86,0.00019339,2]
[374660425,1753403460810,-2548.02,0.00019339,2]
[374660426,1753403460820,-174.135301,0.00019339,2]
[374660427,1753403460831,-174.135301,0.00019339,2]
[374660428,1753403460841,-460.0,0.00019339,2]
[374660429,1753403460851,-151.0,0.00019361,2]
[374660430,1753403460862,-568.95,0.00019363,2]
[374660431,1753403460872,-460.0,0.00019363,2]
[374660432,1753403460882,-460.0,0.00019363,2]
[374660433,1753403460892,-460.0,0.00019363,2]
[374660434,1753403460903,-460.0,0.00019363,2]
[374660435,1753403460913,-460.0,0.00019363,2]
[374660436,1753403460923,-460.0,0.00019363,2]
[374660437,1753403460933,-460.0,0.00019363,2]
[374660438,1753403460964,-460.0,0.00019363,2]
[374660439,1753403460985,-460.0,0.00019363,2]
[374660440,1753403461006,-460.0,0.00019363,2]
[374660441,1753403461032,-677.81,0.00019363,2]
[374660442,1753403461054,-460.0,0.00019363,2]
[374660443,1753403461075,-460.0,0.00019363,2]
[374660444,1753403461094,-460.0,0.00019363,2]
[374660445,1753403461109,-460.0,0.00019365,2]
[374660446,1753403461129,-585.35500086,0.00019365,2]
[374660447,1753403461150,-838.89,0.00019367,2]
[374660448,1753403461165,-460.0,0.00019367,2]
[374660449,1753403461181,-460.0,0.00019367,2]
[374660450,1753403461199,-460.0,0.00019367,2]
[374660451,1753403461217,-460.0,0.00019367,2]
[374660452,1753403461233,-879.6,0.00019367,2]
[374660453,1753403461249,-460.0,0.00019367,2]
[374660454,1753403461270,-389.08514156,0.00019367,2]
[374660455,1753403461286,-460.0,0.00019367,2]
[374660456,1753403461304,-1019.32,0.00019367,2]
[374660457,1753403461320,-460.0,0.00019367,2]
[374660458,1753403461335,-460.0,0.00019367,2]
[374660459,1753403461352,-467.61987647,0.00019367,2]
[374660460,1753403461367,-460.0,0.00019367,2]
[374660461,1753403461382,-460.0,0.00019367,2]
[374660462,1753403461398,-460.0,0.00019367,2]
[374660463,1753403461412,-518.36,0.00019367,2]
[374660464,1753403461427,-1500.0,0.00019368,2]
[374660465,1753403461442,-1000.0,0.00019368,2]
[374660466,1753403461456,-500.0,0.00019368,2]
[374660467,1753403461472,-212.56494168,0.00019368,2]
[374660468,1753403461496,-1500.0,0.00019368,2]
[374660469,1753403461518,-1500.0,0.00019368,2]
[374660470,1753403461535,-300.35007006,0.00019373,2]
[374660471,1753403461552,-500.0,0.00019373,2]
[374660472,1753403461568,-500.0,0.00019373,2]
[374660473,1753403461583,-500.0,0.00019373,2]
[374660474,1753403461599,-500.0,0.00019373,2]
[374660475,1753403461616,-158.28910969,0.00019373,2]
[374660476,1753403461632,-384.59957403,0.00019373,2]
[374660477,1753403461647,-370.46457657,0.00019373,2]
[374660478,1753403461663,-500.0,0.00019373,2]
[374660479,1753403461678,-500.0,0.00019373,2]
[374660480,1753403461693,-500.0,0.00019373,2]
[374660481,1753403461709,-501.17624404,0.00019373,2]
[374660482,1753403461724,-500.0,0.00019373,2]
[374660483,1753403461741,-500.0,0.00019373,2]
[374660484,1753403461756,-350.99718503,0.00019373,2]
[374660485,1753403461775,-500.0,0.00019373,2]
[374660486,1753403461790,-500.0,0.00019373,2]
[374660487,1753403461806,-502.10753571,0.00019373,2]
[374660488,1753403461822,-1317.32,0.00019403,2]
[374660489,1753403461938,-178.70934786,0.00019403,2]
[374660490,1753403461948,-345.0,0.00019438,2]
[374660491,1753403461958,-523.0,0.00019444,2]
[374660492,1753403461967,-345.0,0.00019467,2]
[374660493,1753403461977,-151.0,0.00019473,2]
[374660494,1753403461986,-151.0,0.00019479,2]
[374660495,1753403461995,-151.0,0.00019479,2]
[374660496,1753403462006,-1168.00721077,0.00019507,2]
[374660497,1753403462016,-4836.40217312,0.00019521,2]
[374660498,1753403462026,-460.0,0.00019525,2]
[374660499,1753403462036,-460.0,0.00019525,2]
[374660500,1753403462046,-151.0,0.00019525,2]
[374660501,1753403462056,-151.0,0.00019525,2]
[374660502,1753403462065,-151.0,0.00019525,2]
[374660503,1753403462075,-151.0,0.00019525,2]
[374660504,1753403462083,-243.051662,0.00019525,2]
[374660505,1753403462093,-421.044757,0.00019525,2]
[374660506,1753403462103,-421.044757,0.00019525,2]
[374660507,1753403462112,-3591.58,0.00019525,2]
[374660508,1753403462122,-460.0,0.00019525,2]
[374660509,1753403462131,-541.22,0.00019525,2]
[374660510,1753403462140,-1056.91,0.00019525,2]
[374660511,1753403462149,-1275.35,0.00019525,2]
[374660512,1753403462159,-216.420812,0.00019525,2]
[374660513,1753403462168,-216.420812,0.00019525,2]
[374660514,1753403462178,-3097.91,0.00019525,2]
[374660515,1753403462187,-4502.54,0.00019525,2]